bitfinex/quotes_ETHUSD_20250210
["timestamp","ask_amount","ask_price","bid_price","bid_amount"]
[1739150980973,8.48647553,2619.3,2619.2,2.38689419]
[1739150984676,8.48647553,2619.3,2618.9,2.38689419]
[1739150984883,6.81825,2619.0,2618.9,2.38689419]
[1739150985279,6.92788354,2619.0,2618.9,2.38689419]
[1739150985483,6.97561524,2619.0,2618.9,2.38689419]
[1739150985687,6.92788354,2619.0,2618.9,2.38689419]
[1739150986107,0.10963354,2619.0,2618.9,5.52838838]
[1739150986328,0.10963354,2619.0,2618.9,6.08122722]
[1739150986696,3.92786061,2619.0,2618.9,3.69433303]
[1739150986901,3.92786061,2619.0,2618.9,3.14149419]
[1739150987440,3.81825,2619.0,2618.9,2.38689419]
[1739150987597,3.81825,2619.0,2618.9,3.14149419]
[1739150987796,3.9280671,2619.0,2618.9,3.14149419]
[1739150989235,0.1098171,2619.0,2618.9,3.14149419]
[1739150989622,3.9280671,2619.0,2618.9,3.14149419]
[1739150990639,0.1098171,2619.0,2618.9,3.14149419]
[1739150991440,3.9280671,2619.0,2618.9,3.14149419]
[1739150993320,0.1098171,2619.0,2618.9,5.8425378]
[1739150993636,3.81811,2619.1,2618.9,5.8425378]
[1739150993829,0.10978651,2619.0,2618.9,5.8425378]
[1739150994743,0.10987828,2619.0,2618.9,5.8425378]
[1739150994936,3.81813,2619.1,2618.9,5.8425378]
[1739150995248,0.10987828,2619.0,2618.9,5.8425378]
[1739150996048,7.63604,2619.2,2618.9,5.8425378]
[1739150996345,3.81816,2619.1,2618.9,5.8425378]
[1739150996542,0.10987828,2619.0,2618.9,3.14149419]
[1739150997749,3.92812828,2619.0,2618.9,3.14149419]
[1739150998055,3.92812828,2619.0,2618.9,2.38689419]
[1739150998557,6.92812828,2619.0,2618.9,2.38689419]
[1739150998916,6.97586051,2619.0,2618.9,2.38689419]
[1739150999133,8.08579433,2619.0,2618.9,2.38689419]
[1739151001362,8.08579433,2619.0,2618.0,2.76939419]
[1739151001363,3.81929,2618.3,2618.2,2.38689419]
[1739151001812,7.63786,2618.6,2618.2,3.14769419]
[1739151002011,3.81893,2618.6,2618.5,2.38689419]
[1739151002419,3.81863,2618.8,2618.5,2.38689419]
[1739151002809,3.81841,2618.9,2618.5,2.38689419]
[1739151003010,3.92812828,2619.0,2618.8,2.38689419]
[1739151003246,3.81839,2618.9,2618.8,2.38689419]
[1739151004418,4.60109,2618.9,2618.8,2.38689419]
[1739151004764,5.37574283,2618.9,2618.8,2.38689419]
[1739151005129,3.81839,2618.9,2618.8,2.38689419]
[1739151005355,3.92813828,2619.0,2618.8,2.38689419]
[1739151005872,3.81839,2618.9,2618.8,2.38689419]
[1739151006230,0.10987828,2619.0,2618.8,2.38689419]
[1739151006425,0.10987828,2619.0,2618.9,0.757]
[1739151007062,0.10987828,2619.0,2618.9,3.45828361]
[1739151007653,3.92812828,2619.0,2618.9,3.45828361]
[1739151007863,3.81839,2618.9,2618.8,2.38689419]
[1739151008162,3.92812828,2619.0,2618.8,2.38689419]
[1739151008490,0.10987828,2619.0,2618.8,2.38689419]
[1739151009031,3.92812828,2619.0,2618.8,2.38689419]
[1739151009326,3.81839,2618.9,2618.8,2.38689419]
[1739151009557,4.59304183,2618.9,2618.8,2.38689419]
[1739151009830,3.81839,2618.9,2618.8,2.38689419]
[1739151011572,0.10987828,2619.0,2618.8,5.53078838]
[1739151011745,0.10987828,2619.0,2618.9,2.38689419]
[1739151012469,0.10987828,2619.0,2618.9,6.20528419]
[1739151012777,0.10987828,2619.0,2618.9,2.38689419]
[1739151012982,0.10987828,2619.0,2618.8,3.14389419]
[1739151013485,0.10987828,2619.0,2618.9,2.38689419]
[1739151014387,0.7927,2619.7,2619.0,0.757]
[1739151014542,0.1,2620.8,2619.0,0.757]
[1739151014543,3.81686,2620.0,2619.6,2.38689419]
[1739151014749,3.81675,2620.1,2619.9,2.38689419]
[1739151014943,3.81675,2620.1,2620.0,2.38689419]
[1739151016199,3.81661,2620.2,2620.0,4.77378838]
[1739151016486,3.81664,2620.1,2620.0,5.52978838]
[1739151016695,3.81661,2620.2,2620.0,3.14289419]
[1739151016996,3.81664,2620.1,2620.0,3.14289419]
[1739151017192,4.64135,2620.6,2620.0,3.14289419]
[1739151017193,3.81622,2620.4,2620.0,5.52978838]
[1739151017495,3.81622,2620.4,2620.3,2.38689419]
[1739151017692,4.36929314,2620.4,2620.3,2.38689419]
[1739151019454,3.8165,2620.2,2619.9,2.38689419]
[1739151019662,4.64219,2620.0,2619.9,2.38689419]
[1739151019877,7.64219,2620.0,2619.9,2.38689419]
[1739151020214,3.81648,2620.3,2619.9,5.52978838]
[1739151020365,3.81648,2620.3,2620.2,2.38689419]
[1739151020366,3.81635,2620.3,2620.2,2.38689419]
[1739151020565,6.81635,2620.3,2620.2,2.38689419]
[1739151020796,6.81679,2620.0,2619.9,2.38689419]
[1739151020963,7.60729,2620.0,2619.9,2.38689419]
[1739151022197,7.70677767,2620.0,2619.9,2.38689419]
[1739151022367,9.24077144,2620.0,2619.9,2.38689419]
[1739151022900,6.81723,2619.7,2619.6,2.38689419]
[1739151023198,6.91659489,2619.7,2619.6,2.38689419]
[1739151023884,3.81766,2619.4,2619.3,2.38689419]
[1739151024081,4.68038473,2619.4,2619.3,2.38689419]
[1739151024298,5.47088473,2619.4,2619.3,2.38689419]
[1739151024473,5.47088473,2619.4,2618.3,12.6792]
[1739151024474,3.8181,2619.1,2619.0,2.38689419]
[1739151024670,3.96484974,2619.1,2619.0,2.38689419]
[1739151024868,4.69540148,2619.1,2619.0,2.38689419]
[1739151026919,7.74313287,2619.1,2619.0,2.38689419]
[1739151027209,8.48590148,2619.1,2619.0,2.38689419]
[1739151027426,0.09901951,2619.1,2619.0,2.38689419]
[1739151027608,3.91711951,2619.1,2619.0,2.38689419]
[1739151028176,0.09901951,2619.1,2619.0,2.38689419]
[1739151028380,3.91711951,2619.1,2619.0,2.38689419]
[1739151028997,6.91711951,2619.1,2619.0,2.38689419]
[1739151029193,7.99062846,2619.1,2619.0,2.38689419]
[1739151030997,8.78112846,2619.1,2619.0,2.38689419]
[1739151033325,7.70761951,2619.1,2619.0,2.38689419]
[1739151033492,0.09901951,2619.1,2619.0,2.38689419]
[1739151033692,3.81806,2619.2,2619.0,2.38689419]
[1739151033923,3.91582993,2619.1,2619.0,2.38689419]
[1739151036226,0.09772993,2619.1,2619.0,2.38689419]
[1739151036427,3.91582993,2619.1,2619.0,2.38689419]
[1739151037929,3.81731,2619.7,2619.3,0.7925]
[1739151038134,3.81709,2619.8,2619.5,2.38689419]
[1739151038444,3.81708,2619.8,2619.7,2.38689419]
[1739151041510,6.81708,2619.8,2619.7,2.38689419]
[1739151042394,3.81752,2619.5,2619.4,2.38689419]
[1739151042599,4.57362,2619.5,2619.4,2.38689419]
[1739151044932,4.62134282,2619.5,2619.4,2.38689419]
[1739151045099,4.62134282,2619.5,2618.4,0.7925]
[1739151045100,0.7561,2619.4,2618.4,0.7925]
[1739151045299,3.81898,2618.5,2618.4,0.7925]
[1739151045748,3.91378004,2618.5,2618.4,0.7925]
[1739151047000,3.81929,2618.3,2618.1,0.7925]
[1739151047406,0.09479237,2618.2,2618.1,0.7925]
[1739151048139,3.81941,2618.2,2618.0,2.38689419]
[1739151048439,3.81956,2618.1,2618.0,2.38689419]
[1739151048804,3.91435237,2618.1,2618.0,2.38689419]
[1739151049234,3.91435237,2618.1,2618.0,4.77378838]
[1739151049539,3.91435237,2618.1,2618.0,2.38689419]
[1739151050411,4.31912578,2618.1,2618.0,2.38689419]
[1739151050742,3.91435237,2618.1,2618.0,2.38689419]
[1739151052147,3.90549237,2618.1,2617.4,2.38689419]
[1739151052462,6.82043,2617.5,2617.4,2.38689419]
[1739151053157,6.91522237,2617.5,2617.4,2.38689419]
[1739151053313,6.82087,2617.2,2617.1,2.38689419]
[1739151053822,6.86863479,2617.2,2617.1,2.38689419]
[1739151054017,3.82131,2616.9,2616.8,2.38689419]
[1739151054222,6.82131,2616.9,2616.8,2.38689419]
[1739151054417,6.86908045,2616.9,2616.8,2.38689419]
[1739151054634,6.91610237,2616.9,2616.8,2.38689419]
[1739151054831,8.11868106,2616.9,2616.8,2.38689419]
[1739151055043,3.82175,2616.6,2616.5,2.38689419]
[1739151055219,6.82175,2616.6,2616.5,2.38689419]
[1739151055743,3.82248,2616.1,2616.0,3.06592686]
[1739151056242,3.91333023,2616.1,2616.0,3.06592686]
[1739151056657,6.96111446,2616.1,2616.0,3.06592686]
[1739151056979,4.63362,2615.8,2615.7,3.06592686]
[1739151057263,4.63362,2615.8,2615.0,8.86]
[1739151057264,3.82306,2615.7,2615.2,0.77817914]
[1739151057488,3.82306,2615.7,2615.3,0.7997]
[1739151057843,0.09054247,2615.6,2615.3,0.7997]
[1739151058039,3.82348,2615.5,2615.3,0.7997]
[1739151058242,0.09054247,2615.6,2615.4,3.06592686]
[1739151058443,3.82284,2615.9,2615.4,3.53030746]
[1739151058673,7.64575,2615.9,2615.8,3.06592686]
[1739151059051,3.82254,2616.1,2615.9,0.7997]
[1739151059251,3.82227,2616.3,2616.0,3.06592686]
[1739151059452,3.82227,2616.3,2616.2,3.06592686]
[1739151061659,3.82175,2616.6,2616.2,3.06592686]
[1739151061864,3.82175,2616.6,2616.5,3.06592686]
[1739151062187,3.82153,2616.8,2616.5,3.86562686]
[1739151062391,3.82164,2616.7,2616.5,3.86562686]
[1739151062687,3.82175,2616.6,2616.5,3.86562686]
[1739151062850,3.82175,2616.6,2616.5,3.06592686]
[1739151063184,3.869525,2616.6,2616.5,3.06592686]
[1739151063358,4.7197115,2616.6,2616.5,3.06592686]
[1739151063559,4.6719365,2616.6,2616.5,3.06592686]
[1739151063785,3.82175,2616.6,2616.5,3.06592686]
[1739151064382,3.86952499,2616.6,2616.5,3.06592686]
[1739151064546,6.82175,2616.6,2616.5,3.06592686]
[1739151065992,3.82219,2616.3,2616.2,3.06592686]
[1739151066192,3.82219,2616.3,2615.9,3.06592686]
[1739151066193,3.82262,2616.0,2615.9,3.06592686]
[1739151066495,3.82262,2616.0,2614.7,5.82447]
[1739151066496,3.8704066,2616.0,2615.6,3.06592686]
[1739151066656,7.62026,2615.7,2615.6,3.06592686]
[1739151067403,3.8235,2615.4,2615.3,3.06592686]
[1739151067603,3.82394,2615.1,2615.0,3.06592686]
[1739151067772,3.82438,2614.8,2614.7,3.06592686]
[1739151067976,6.87218698,2614.8,2614.7,3.06592686]
[1739151068171,6.91471474,2614.8,2614.7,3.06592686]
[1739151068371,3.91471474,2614.8,2614.7,3.06592686]
[1739151069968,7.73641892,2614.8,2614.7,3.06592686]
[1739151070259,7.68861021,2614.8,2614.7,3.06592686]
[1739151070461,3.82526,2614.2,2614.1,5.506]
[1739151070692,3.82526,2614.2,2614.1,3.06592686]
[1739151070905,3.91415537,2614.2,2614.1,3.06592686]
[1739151071405,0.08889537,2614.2,2614.1,3.06592686]
[1739151071703,3.82526,2614.2,2614.1,3.06592686]
[1739151072000,3.91392426,2614.2,2614.1,3.06592686]
[1739151072972,4.73564455,2614.2,2614.1,3.06592686]
[1739151073167,3.91038455,2614.2,2613.8,3.06592686]
[1739151073512,3.8257,2613.9,2613.8,3.06592686]
[1739151074020,3.91423328,2613.9,2613.8,3.06592686]
[1739151074225,0.08853328,2613.9,2613.8,7.27363499]
[1739151074512,3.82499,2614.4,2613.9,4.3756]
[1739151074681,3.82499,2614.4,2614.3,3.06592686]
[1739151075483,3.82482,2614.5,2614.3,3.06592686]
[1739151075679,3.82365,2615.3,2614.4,0.7928]
[1739151075884,3.82395,2615.1,2614.9,3.06592686]
[1739151076157,3.82395,2615.1,2615.0,3.06592686]
[1739151076682,3.82381,2615.2,2615.0,3.06592686]
[1739151076868,3.82279,2615.9,2615.3,3.82352]
[1739151077072,3.82277,2615.9,2615.8,3.06592686]
[1739151077326,3.82229,2616.3,2615.8,3.06592686]
[1739151077520,3.82229,2616.3,2616.2,3.06592686]
[1739151078084,3.82262,2616.0,2615.9,3.06592686]
[1739151079108,3.82306,2615.7,2615.6,3.06592686]
[1739151079271,6.8235,2615.4,2615.3,3.06592686]
[1739151079941,3.82394,2615.1,2615.0,3.06592686]
[1739151080429,6.82394,2615.1,2615.0,3.06592686]
[1739151080644,7.888714,2615.1,2615.0,3.06592686]
[1739151081339,3.82353,2615.4,2615.0,3.06592686]
[1739151081491,3.82353,2615.4,2615.3,3.06592686]
[1739151081692,3.0,2615.7,2615.3,3.06592686]
[1739151081693,3.82345,2615.5,2615.3,3.06592686]
[1739151081889,3.82314,2615.7,2615.4,3.06592686]
[1739151082093,3.82292,2615.8,2615.5,0.7928]
[1739151082408,3.82292,2615.8,2615.7,3.06592686]
[1739151083090,3.82283,2615.9,2615.7,3.06592686]
[1739151083285,3.8225,2616.1,2615.7,3.06592686]
[1739151083491,3.82225,2616.3,2616.0,3.06592686]
[1739151083702,3.82248,2616.1,2616.0,3.06592686]
[1739151084297,3.82233,2616.2,2616.0,3.06592686]
[1739151084513,3.82248,2616.1,2616.0,3.06592686]
[1739151084807,7.6448,2616.2,2616.0,3.06592686]
[1739151085040,3.82214,2616.4,2616.0,3.06592686]
[1739151085347,3.82155,2616.8,2616.3,3.06592686]
[1739151085498,3.82155,2616.8,2616.7,3.06592686]
[1739151089306,3.86932149,2616.8,2616.7,3.06592686]
[1739151089617,3.82189,2616.5,2616.4,3.06592686]
[1739151090822,4.6184,2617.0,2616.4,3.06592686]
[1739151091007,3.82182,2616.6,2616.1,3.82241]
[1739151091832,3.82182,2616.6,2616.0,0.55]
[1739151092128,3.82216,2616.4,2616.0,0.55]
[1739151092297,3.82216,2616.4,2616.3,3.06592686]
[1739151093129,3.82175,2616.7,2616.3,3.06592686]
[1739151093334,3.8216,2616.7,2616.6,3.06592686]
[1739151095333,7.64307,2616.8,2616.6,3.06592686]
[1739151095641,3.82147,2616.8,2616.6,3.06592686]
[1739151096745,7.64304,2616.8,2616.6,3.06592686]
[1739151096897,3.82147,2616.8,2616.6,3.06592686]
[1739151097234,0.0878114,2616.7,2616.6,3.06592686]
[1739151097406,0.0878114,2616.7,2616.6,7.82683955]
[1739151097592,3.82083,2617.3,2616.6,7.82683955]
[1739151097796,3.82092,2617.2,2616.7,3.82153]
[1739151097996,0.08776526,2617.1,2616.7,3.82153]
[1739151098727,0.08776526,2617.1,2616.6,4.76091269]
[1739151098728,3.90878526,2617.1,2616.6,4.76082269]
[1739151099056,3.90878526,2617.1,2617.0,3.06592686]
[1739151100415,0.08776526,2617.1,2617.0,3.89162686]
[1739151100755,3.90911592,2617.1,2616.9,3.06592686]
[1739151100959,3.82116,2617.0,2616.9,3.06592686]
[1739151101322,3.90925592,2617.0,2616.9,3.06592686]
[1739151101521,0.08809592,2617.0,2616.9,3.06592686]
[1739151101745,3.90925592,2617.0,2616.9,3.06592686]
[1739151102475,4.68228351,2617.0,2616.9,3.06592686]
[1739151102619,4.73004973,2617.0,2616.9,3.06592686]
[1739151102820,4.68228351,2617.0,2616.9,3.06592686]
[1739151103021,4.68228351,2617.0,2616.4,0.8257]
[1739151103022,3.8216,2616.7,2616.6,3.06592686]
[1739151103355,3.90969592,2616.7,2616.6,3.06592686]
[1739151104475,3.95746669,2616.7,2616.6,3.06592686]
[1739151104762,4.68759059,2616.7,2616.6,3.06592686]
[1739151105567,3.90969592,2616.7,2616.6,3.06592686]
[1739151107142,0.08809592,2616.7,2616.6,3.06592686]
[1739151107361,3.82093,2617.2,2616.6,3.06592686]
[1739151107362,0.7721,2617.4,2616.6,3.89162686]
[1739151107558,3.82139,2616.9,2616.6,0.8257]
[1739151107741,3.8216,2616.7,2616.6,0.8257]
[1739151107949,3.90948832,2616.7,2616.3,0.8257]
[1739151108161,3.82184,2616.6,2616.3,0.8257]
[1739151108326,0.08788832,2616.5,2616.3,0.8257]
[1739151108528,0.7721,2618.0,2616.5,3.8257]
[1739151108772,3.82014,2617.7,2617.6,3.06592686]
[1739151109124,3.90500481,2617.7,2617.6,3.06592686]
[1739151109466,3.90500481,2617.7,2617.3,3.06592686]
[1739151109467,3.82058,2617.4,2617.3,3.06592686]
[1739151110040,3.82102,2617.1,2617.0,3.06592686]
[1739151110570,3.90588481,2617.1,2617.0,3.06592686]
[1739151110898,3.82146,2616.8,2616.7,3.06592686]
[1739151111043,3.82146,2616.8,2615.8,14.68281]
[1739151111044,3.82233,2616.2,2616.1,3.06592686]
[1739151111445,3.87011168,2616.2,2616.1,3.06592686]
[1739151111866,3.90719481,2616.2,2616.1,3.06592686]
[1739151114643,0.08486481,2616.2,2616.1,3.06592686]
[1739151114846,3.90719481,2616.2,2616.1,3.06592686]
[1739151115047,3.82233,2616.2,2616.1,3.06592686]
[1739151115243,3.90719481,2616.2,2616.1,3.06592686]
[1739151115792,0.08486481,2616.2,2616.1,3.06592686]
[1739151115995,7.64398,2616.5,2616.1,3.45357955]
[1739151116163,3.90691481,2616.4,2616.1,3.06592686]
[1739151116344,3.82233,2616.2,2616.1,3.06592686]
[1739151116768,3.90719481,2616.2,2616.1,3.06592686]
[1739151117389,3.82277,2615.9,2615.8,3.06592686]
[1739151117797,3.90763481,2615.9,2615.8,3.06592686]
[1739151118296,4.68066229,2615.9,2615.8,3.06592686]
[1739151119281,3.90763481,2615.9,2615.8,3.06592686]
[1739151119696,0.08486481,2615.9,2615.8,3.06592686]
[1739151120003,0.08486481,2615.9,2615.8,3.83222686]
[1739151120290,3.82249,2616.1,2615.8,3.83222686]
[1739151120494,3.82212,2616.4,2616.0,3.06592686]
[1739151120696,3.82212,2616.4,2616.3,3.06592686]
[1739151122011,3.82169,2616.7,2616.3,3.06592686]
[1739151122157,3.8216,2616.7,2616.6,3.06592686]
[1739151123895,3.82204,2616.4,2616.3,3.06592686]
[1739151124205,3.82204,2616.4,2616.0,0.7663]
[1739151124206,3.82248,2616.1,2616.0,3.06592686]
[1739151127087,6.87026406,2616.1,2616.0,3.06592686]
[1739151127281,6.90632168,2616.1,2616.0,3.06592686]
[1739151129812,0.08384168,2616.1,2616.0,3.06592686]
[1739151130020,0.08384168,2616.1,2616.0,3.45416955]
[1739151130501,3.82219,2616.3,2616.0,3.45416955]
[1739151130708,0.08384168,2616.1,2616.0,3.45416955]
[1739151131002,3.82219,2616.3,2616.0,3.45416955]
[1739151131158,3.82213,2616.4,2616.0,3.45416955]
[1739151131358,3.82194,2616.5,2616.3,3.06592686]
[1739151131565,0.7632,2617.2,2616.4,0.8165]
[1739151131765,3.82081,2617.3,2617.1,3.06592686]
[1739151132068,3.82079,2617.3,2617.1,3.06592686]
[1739151132267,3.82087,2617.2,2617.1,3.06592686]
[1739151132688,3.82079,2617.3,2617.1,3.06592686]
[1739151132985,3.82087,2617.2,2617.1,3.06592686]
[1739151133607,7.64128,2617.4,2617.1,3.06592686]
[1739151133793,3.82076,2617.3,2617.1,3.06592686]
[1739151134520,7.64125,2617.4,2617.1,3.06592686]
[1739151134718,3.82059,2617.4,2617.1,3.06592686]
[1739151135612,3.82058,2617.4,2617.1,3.06592686]
[1739151136355,7.64079,2617.6,2617.1,3.45416955]
[1739151136521,3.82038,2617.6,2617.5,3.06592686]
[1739151137210,3.82016,2617.7,2617.5,3.06592686]
[1739151137598,3.82029,2617.6,2617.5,3.06592686]
[1739151139993,3.8199,2617.9,2617.5,3.89212686]
[1739151140212,3.81985,2617.9,2617.8,3.06592686]
[1739151140854,0.8069,2618.4,2617.8,3.06592686]
[1739151141032,0.8069,2618.8,2618.3,3.06592686]
[1739151141356,3.81919,2618.4,2617.9,12.67985]
[1739151141848,3.81919,2618.4,2617.9,16.49959]
[1739151142150,3.81871,2618.7,2618.4,0.8262]
[1739151142512,3.81861,2618.8,2618.4,0.8262]
[1739151142849,3.81868,2618.7,2618.4,0.8262]
[1739151143050,3.81914,2618.4,2618.1,0.7879]
[1739151143874,3.81941,2618.2,2618.1,0.7879]
[1739151144044,3.81956,2618.1,2617.7,1.3379]
[1739151144219,3.81863,2618.8,2618.2,0.7879]
[1739151144419,3.81835,2619.0,2618.7,3.06592686]
[1739151145241,3.81795,2619.2,2618.7,3.06592686]
[1739151145429,3.81795,2619.2,2619.1,3.06592686]
[1739151145624,6.81795,2619.2,2619.1,3.06592686]
[1739151145828,3.81795,2619.2,2619.1,3.06592686]
[1739151148768,0.7951,2619.6,2619.1,3.37251955]
[1739151148975,0.19399949,2620.2,2619.5,3.06592686]
[1739151148976,3.81708,2619.8,2619.5,3.06592686]
[1739151149173,3.7951,2619.9,2619.5,6.88343686]
[1739151149339,6.81693,2619.9,2619.8,3.06592686]
[1739151152663,3.81681,2620.0,2619.8,3.06592686]
[1739151152862,3.81681,2620.0,2619.8,3.45130955]
[1739151153341,7.63372,2620.0,2619.8,3.45130955]
[1739151153523,3.81693,2619.9,2619.8,3.45130955]
[1739151153728,7.6337,2620.0,2619.8,3.45130955]
[1739151154028,3.81681,2620.0,2619.8,3.45130955]
[1739151154228,3.81693,2619.9,2619.8,3.45130955]
[1739151154928,3.81681,2620.0,2619.8,3.45130955]
[1739151155134,3.81636,2620.3,2619.9,0.42392096]
[1739151155341,3.81636,2620.3,2620.2,3.06592686]
[1739151156436,3.0,2620.3,2619.8,3.06592686]
[1739151156641,3.81693,2619.9,2619.8,3.06592686]
[1739151156940,3.81645,2620.3,2619.8,7.26830955]
[1739151157172,0.7951,2620.7,2620.2,3.06592686]
[1739151157342,3.81635,2620.3,2620.2,3.06592686]
[1739151157542,3.81631,2620.4,2620.2,3.06592686]
[1739151157753,3.81635,2620.3,2620.2,3.06592686]
[1739151159080,3.81634,2620.4,2620.2,3.06592686]
[1739151159282,3.81635,2620.3,2620.2,3.06592686]
[1739151161088,3.81634,2620.4,2620.2,3.06592686]
[1739151161308,3.81635,2620.3,2620.2,3.06592686]
[1739151161443,7.63201,2620.6,2620.3,0.30659269]
[1739151161644,7.63146,2620.8,2620.5,3.06592686]
[1739151161878,3.81571,2620.8,2620.7,3.06592686]
[1739151163468,4.65850681,2620.8,2620.7,3.06592686]
[1739151163784,4.61081,2620.8,2620.7,3.06592686]
[1739151163988,3.81571,2620.8,2620.7,3.06592686]
[1739151164278,3.81562,2620.8,2620.7,4.16041955]
[1739151164480,3.8149,2621.3,2620.7,7.22634641]
[1739151164786,3.81536,2621.0,2620.7,1.09449269]
[1739151164956,3.81534,2621.0,2620.7,0.7879]
[1739151165673,3.81533,2621.0,2620.9,3.06592686]
[1739151170517,0.7951,2621.7,2620.9,3.85382686]
[1739151170688,3.81395,2622.0,2621.2,0.7899]
[1739151170890,3.81398,2622.0,2621.7,3.06592686]
[1739151171108,3.81417,2621.8,2621.7,3.06592686]
[1739151172409,3.90616688,2621.8,2621.7,3.06592686]
[1739151173085,6.95384528,2621.8,2621.4,3.06592686]
[1739151173285,3.8146,2621.5,2621.4,3.06592686]
[1739151173623,3.90671946,2621.5,2621.4,3.06592686]
[1739151174071,3.90671946,2621.5,2621.4,7.43067686]
[1739151174072,0.09211946,2621.5,2621.4,7.43067686]
[1739151174273,3.81345,2622.3,2621.7,3.81419]
[1739151174473,3.81345,2622.3,2622.2,3.06592686]
[1739151175914,3.8131,2622.6,2622.2,3.06592686]
[1739151176077,3.81338,2622.4,2622.2,0.38558269]
[1739151176405,3.81338,2622.4,2622.1,0.7899]
[1739151176573,7.62617,2622.6,2622.1,0.7899]
[1739151176777,3.81316,2622.5,2622.1,0.7499]
[1739151177228,3.81308,2622.6,2622.1,0.7499]
[1739151177378,3.81288,2622.7,2622.5,3.06592686]
[1739151178088,0.1472721,2622.8,2622.5,3.06592686]
[1739151178321,3.813,2622.6,2622.5,3.06592686]
[1739151178522,4.63797636,2622.6,2622.5,3.06592686]
[1739151178726,4.59031621,2622.6,2622.5,3.06592686]
[1739151179289,3.81289,2622.7,2622.5,3.06592686]
[1739151179494,3.813,2622.6,2622.5,3.06592686]
[1739151180228,0.1472721,2622.8,2622.5,3.06592686]
[1739151180537,3.9600721,2622.8,2622.5,3.06592686]
[1739151180829,0.1472721,2622.8,2622.5,3.06592686]
[1739151181031,3.813,2622.6,2622.5,3.06592686]
[1739151181530,3.81288,2622.7,2622.5,3.06592686]
[1739151181831,0.09079805,2622.6,2622.5,3.06592686]
[1739151182745,0.1472721,2622.8,2622.5,4.16241955]
[1739151182929,0.1472721,2622.8,2622.7,3.81286]
[1739151183241,0.1472721,2622.8,2622.6,3.813]
[1739151183457,0.1472721,2622.8,2622.5,4.16241955]
[1739151183636,3.81287,2622.7,2622.5,3.85582686]
[1739151183805,3.813,2622.6,2622.5,3.06592686]
[1739151185267,4.59031421,2622.6,2622.5,3.06592686]
[1739151185822,3.81344,2622.3,2622.2,3.06592686]
[1739151187080,0.04767124,2622.3,2621.9,3.06592686]
[1739151187231,3.81388,2622.0,2621.9,3.06592686]
[1739151187749,3.90413438,2622.0,2621.9,3.06592686]
[1739151188130,3.81431,2621.7,2621.6,3.06592686]
[1739151188566,3.90455672,2621.7,2621.6,3.06592686]
[1739151188860,0.09024672,2621.7,2621.6,3.06592686]
[1739151189225,3.81431,2621.7,2621.6,3.06592686]
[1739151189422,3.90438053,2621.7,2621.6,3.06592686]
[1739151198885,3.81475,2621.4,2621.3,3.06592686]
[1739151199114,3.90408528,2621.4,2621.3,3.06592686]
[1739151199673,3.90408528,2621.4,2621.3,2.38569955]
[1739151202915,0.08933528,2621.4,2621.3,3.21449955]
[1739151203069,3.81386,2622.1,2621.4,3.81463]
[1739151203274,0.8098,2622.7,2622.0,4.7713991]
[1739151203505,0.8098,2622.7,2622.6,2.38569955]
[1739151203506,4.62266,2622.7,2622.6,2.38569955]
[1739151203666,3.9600321,2622.8,2622.6,2.38569955]
[1739151204194,0.1472721,2622.8,2622.6,2.38569955]
[1739151204910,0.1472721,2622.8,2622.6,2.70714951]
[1739151205202,3.9600121,2622.8,2622.6,2.70714951]
[1739151205408,0.1472721,2622.8,2622.6,2.70714951]
[1739151205705,3.9600121,2622.8,2622.7,3.05079197]
[1739151206774,3.81315,2622.5,2622.4,3.05079197]
[1739151207214,6.81315,2622.5,2622.4,3.05079197]
[1739151207375,7.875766,2622.5,2622.1,3.05079197]
[1739151207570,3.81359,2622.2,2622.1,3.05079197]
[1739151208340,7.627,2622.3,2622.1,3.05079197]
[1739151208535,3.81345,2622.3,2622.1,3.05079197]
[1739151208701,3.81295,2622.7,2622.2,4.64238]
[1739151208900,0.1472721,2622.8,2622.6,3.05079197]
[1739151209141,0.1472721,2622.8,2622.7,0.8288]
[1739151210112,0.23368481,2622.8,2622.7,0.8288]
[1739151210520,0.23368481,2622.8,2622.7,0.7933]
[1739151211150,0.23368481,2622.8,2622.7,4.60616]
[1739151211760,0.1472721,2622.8,2622.7,4.60616]
[1739151211912,0.1472721,2622.8,2622.7,5.14626]
[1739151212111,0.005,2623.4,2623.0,3.78552]
[1739151212462,0.005,2623.4,2623.3,3.05079197]
[1739151212810,3.90513638,2623.4,2623.3,3.05079197]
[1739151213350,3.90513638,2623.4,2623.0,8.86]
[1739151213351,3.81207,2623.3,2623.0,8.86]
[1739151213525,3.90513638,2623.4,2623.3,3.05079197]
[1739151213850,0.09329638,2623.4,2623.3,3.05079197]
[1739151214661,3.90513638,2623.4,2623.3,3.02209197]
[1739151214859,3.90513638,2623.4,2623.3,3.00229197]
[1739151215166,3.90513638,2623.4,2623.3,2.97549197]
[1739151215321,4.75780102,2623.4,2623.3,2.97549197]
[1739151216939,4.75780102,2623.4,2623.3,2.93869197]
[1739151217911,3.90513638,2623.4,2623.3,2.93869197]
[1739151218858,3.90513638,2623.4,2623.3,2.86769197]
[1739151220611,0.09329638,2623.4,2623.3,3.05079197]
[1739151220859,3.90513638,2623.4,2623.3,3.05079197]
[1739151222021,0.09329638,2623.4,2623.3,3.05079197]
[1739151223155,3.90513638,2623.4,2623.3,3.05079197]
[1739151224359,4.67682702,2623.4,2623.3,3.05079197]
[1739151225528,3.90513638,2623.4,2623.3,3.05079197]
[1739151226431,3.81228,2623.1,2623.0,3.05079197]
[1739151226849,3.90086717,2623.1,2623.0,3.05079197]
[1739151227445,3.90086717,2623.1,2622.7,3.05079197]
[1739151227637,3.81271,2622.8,2622.7,3.05079197]
[1739151228037,3.90116707,2622.8,2622.7,3.05079197]
[1739151228670,0.08845707,2622.8,2622.7,3.05079197]
[1739151228861,3.90116707,2622.8,2622.7,3.05079197]
[1739151229352,0.08845707,2622.8,2622.7,3.05079197]
[1739151229564,3.90116707,2622.8,2622.7,3.05079197]
[1739151229935,0.08845707,2622.8,2622.7,3.05079197]
[1739151230136,0.08845707,2622.8,2622.7,7.24415117]
[1739151230343,3.81234,2623.1,2622.7,7.24415117]
[1739151230543,3.81201,2623.3,2623.0,3.05079197]
[1739151230858,3.81228,2623.1,2623.0,3.05079197]
[1739151232288,3.9008136,2623.1,2623.0,3.05079197]
[1739151233691,3.9008136,2623.1,2623.0,2.38279241]
[1739151234701,4.71977213,2623.1,2623.0,2.38279241]
[1739151234992,4.67211796,2623.1,2623.0,2.38279241]
[1739151236889,3.81315,2622.5,2622.4,2.38279241]
[1739151237389,3.90120912,2622.5,2622.4,2.38279241]